fUST/lending_fUST_20250523
["ID","MTS","AMOUNT","RATE_DAILY","PERIOD"]
[362079532,1747979451921,-160.0,0.00020996,7]
[362079533,1747979451930,-195.0,0.00021,10]
[362079534,1747979451940,-195.0,0.00021,10]
[362079535,1747979451950,-589.0,0.00021,2]
[362079536,1747979451960,-21372.24382361,0.00021,7]
[362079537,1747979451970,-3000.0,0.00021,2]
[362079538,1747979451980,-2000.0,0.00021,2]
[362079539,1747979451990,-151.0,0.00021,2]
[362079540,1747979452000,-151.0,0.00021,2]
[362079541,1747979452010,-13286.31812257,0.00021,3]
[362079542,1747979452023,-197.952902,0.00021,2]
[362079543,1747979452033,-197.952902,0.00021,2]
[362079544,1747979452042,-151.0,0.00021,2]
[362079545,1747979452052,-151.0,0.00021,2]
[362079546,1747979452062,-189.385437,0.00021,2]
[362079547,1747979452071,-153.176725,0.00021,2]
[362079548,1747979452080,-238.878266,0.00021,2]
[362079549,1747979452091,-238.878266,0.00021,2]
[362079550,1747979452101,-151.0,0.00021,2]
[362079551,1747979452111,-151.0,0.00021,2]
[362079552,1747979452120,-151.0,0.00021,2]
[362079553,1747979452130,-151.0,0.00021,2]
[362079554,1747979452139,-180.464442,0.00021,2]
[362079555,1747979452149,-151.0,0.00021,2]
[362079556,1747979452158,-151.0,0.00021,2]
[362079557,1747979452167,-151.0,0.00021,2]
[362079558,1747979452177,-151.0,0.00021,2]
[362079559,1747979452187,-151.0,0.00021,2]
[362079560,1747979452197,-151.0,0.00021,2]
[362079561,1747979452207,-894.64583333,0.00021,7]
[362079562,1747979452217,-151.0,0.00021,2]
[362079563,1747979452227,-212.48480548,0.00021,7]
[362079564,1747979452236,-12647.66147447,0.00021,7]
[362079565,1747979452246,-3000.0,0.0002101,2]
[362079566,1747979452255,-151.0,0.0002101,2]
[362079567,1747979452265,-500.0,0.00021013,2]
[362079568,1747979452274,-3000.0,0.0002102,2]
[362079569,1747979452284,-169.148613,0.0002102,2]
[362079570,1747979452293,-169.148613,0.0002102,2]
[362079571,1747979452302,-151.0,0.0002102,2]
[362079572,1747979452311,-151.0,0.0002102,2]
[362079573,1747979452321,-3000.0,0.0002103,2]
[362079574,1747979452331,-229.925772,0.0002103,2]
[362079575,1747979452341,-229.925772,0.0002103,2]
[362079576,1747979452351,-5522.18001289,0.00021038,4]
[362079577,1747979452360,-3000.0,0.0002104,2]
[362079578,1747979452370,-3000.0,0.0002105,2]
[362079579,1747979452379,-3000.0,0.0002106,2]
[362079580,1747979452390,-151.0,0.0002106,2]
[362079581,1747979452399,-151.0,0.0002106,2]
[362079582,1747979452409,-151.0,0.0002106,2]
[362079583,1747979452419,-238.878266,0.0002106,2]
[362079584,1747979452428,-238.878266,0.0002106,2]
[362079585,1747979452438,-151.0,0.0002106,2]
[362079586,1747979452448,-266.348387,0.0002106,2]
[362079587,1747979452458,-151.0,0.0002106,2]
[362079588,1747979452467,-3000.0,0.0002107,2]
[362079589,1747979452477,-3000.0,0.0002108,2]
[362079590,1747979452487,-151.0,0.0002108,2]
[362079591,1747979452497,-151.0,0.0002108,2]
[362079592,1747979452507,-151.0,0.0002108,2]
[362079593,1747979452518,-151.0,0.0002108,2]
[362079594,1747979452528,-3000.0,0.0002109,2]
[362079595,1747979452538,-151.0,0.0002109,2]
[362079596,1747979452547,-151.0,0.0002109,2]
[362079597,1747979452557,-151.0,0.0002109,2]
[362079598,1747979452695,-154.088098,0.0002109,2]
[362079599,1747979452705,-154.088098,0.0002109,2]
[362079600,1747979452715,-151.0,0.0002109,2]
[362079601,1747979452725,-151.0,0.0002109,2]
[362079602,1747979452736,-996.196674,0.0002109,2]
[362079603,1747979452747,-996.196674,0.0002109,2]
[362079604,1747979452756,-298.554493,0.0002109,2]
[362079605,1747979452766,-298.554493,0.0002109,2]
[362079606,1747979452776,-430.0,0.00021095,2]
[362079607,1747979452786,-552.44,0.00021095,2]
[362079608,1747979452796,-472.92,0.00021095,2]
[362079609,1747979452806,-551.13,0.00021095,2]
[362079610,1747979452815,-430.0,0.00021095,2]
[362079611,1747979452825,-791.74,0.00021095,2]
[362079612,1747979452835,-430.0,0.00021095,2]
[362079613,1747979452845,-649.04,0.00021095,2]
[362079614,1747979452854,-489.99,0.00021095,2]
[362079615,1747979452864,-750.1,0.00021095,2]
[362079616,1747979452874,-677.22,0.00021095,2]
[362079617,1747979452884,-430.0,0.00021095,2]
[362079618,1747979452894,-1615.51,0.00021095,2]
[362079619,1747979452903,-1478.49,0.00021095,2]
[362079620,1747979452913,-430.0,0.00021095,2]
[362079621,1747979452923,-677.89,0.00021095,2]
[362079622,1747979452933,-486.8,0.00021095,2]
[362079623,1747979452943,-1176.14,0.00021095,2]
[362079624,1747979452953,-537.48,0.00021095,2]
[362079625,1747979452964,-155.0,0.00021096,2]
[362079626,1747979452974,-3000.0,0.000211,2]
[362079627,1747979452984,-3000.0,0.0002111,2]
[362079628,1747979452994,-3000.0,0.0002112,2]
[362079629,1747979453004,-151.0,0.0002112,2]
[362079630,1747979453014,-3000.0,0.0002113,2]
[362079631,1747979453026,-151.0,0.0002113,2]
[362079632,1747979453036,-3000.0,0.0002114,2]
[362079633,1747979453047,-151.0,0.0002114,2]
[362079634,1747979453058,-151.0,0.0002114,2]
[362079635,1747979453068,-295.002582,0.0002114,2]
[362079636,1747979453078,-3000.0,0.0002115,2]
[362079637,1747979453088,-502.96559601,0.00021157,2]
[362079638,1747979453099,-3000.0,0.0002116,2]
[362079639,1747979453108,-151.0,0.0002116,2]
[362079640,1747979453118,-1600.0,0.00021164,2]
[362079641,1747979453127,-3000.0,0.0002117,2]
[362079642,1747979453137,-151.0,0.00021178,2]
[362079643,1747979453147,-151.0,0.00021178,2]
[362079644,1747979453156,-151.0,0.00021178,2]
[362079645,1747979453166,-724.0345856,0.00021178,2]
[362079646,1747979453176,-3000.0,0.0002118,2]
[362079647,1747979453186,-169.148613,0.0002118,2]
[362079648,1747979453196,-169.148613,0.0002118,2]
[362079649,1747979453205,-151.0,0.0002118,2]
[362079650,1747979453215,-151.0,0.0002118,2]
[362079651,1747979453225,-3000.0,0.0002119,2]
[362079652,1747979453235,-197.952902,0.0002119,2]
[362079653,1747979453246,-197.952902,0.0002119,2]
[362079654,1747979453256,-160.0,0.00021191,8]
[362079655,1747979453265,-3000.0,0.000212,2]
[362079656,1747979453275,-3000.0,0.0002121,2]
[362079657,1747979453284,-3000.0,0.0002122,2]
[362079658,1747979453295,-5000.0,0.0002123,2]
[362079659,1747979453304,-5000.0,0.0002123,2]
[362079660,1747979453314,-5000.0,0.0002123,2]
[362079661,1747979453323,-5000.0,0.0002123,2]
[362079662,1747979453332,-5000.0,0.0002123,2]
[362079663,1747979453342,-5000.0,0.0002123,2]
[362079664,1747979453351,-5000.0,0.0002123,2]
[362079665,1747979453360,-3000.0,0.0002123,2]
[362079666,1747979453369,-151.0,0.0002123,2]
[362079667,1747979453379,-151.0,0.0002123,2]
[362079668,1747979453389,-229.925772,0.0002123,2]
[362079669,1747979453398,-229.925772,0.0002123,2]
[362079670,1747979453407,-151.0,0.0002123,2]
[362079671,1747979453416,-151.0,0.0002123,2]
[362079672,1747979453430,-516.689394,0.0002123,2]
[362079673,1747979453439,-516.689394,0.0002123,2]
[362079674,1747979453448,-151.0,0.0002123,2]
[362079675,1747979453458,-151.0,0.0002123,2]
[362079676,1747979453468,-151.0,0.0002123,2]
[362079677,1747979453477,-151.0,0.0002123,2]
[362079678,1747979453487,-151.0,0.0002123,2]
[362079679,1747979453497,-178.87489615,0.00021231,2]
[362079680,1747979453507,-3000.0,0.0002124,2]
[362079681,1747979453517,-3000.0,0.0002125,2]
[362079682,1747979453527,-153.833961,0.0002125,2]
[362079683,1747979453536,-151.0,0.0002125,2]
[362079684,1747979453546,-3000.0,0.0002126,2]
[362079685,1747979453555,-166.46594649,0.0002126,2]
[362079686,1747979453565,-3000.0,0.0002127,2]
[362079687,1747979453575,-151.866833,0.0002127,2]
[362079688,1747979453585,-151.0,0.0002127,2]
[362079689,1747979453596,-154.088098,0.0002127,2]
[362079690,1747979453605,-154.088098,0.0002127,2]
[362079691,1747979453615,-151.0,0.0002127,2]
[362079692,1747979453625,-151.0,0.0002127,2]
[362079693,1747979453635,-151.0,0.00021273,2]
[362079694,1747979453645,-3000.0,0.0002128,2]
[362079695,1747979453655,-297.946349,0.0002128,2]
[362079696,1747979453665,-151.0,0.0002128,2]
[362079697,1747979453675,-400.11856503,0.00021284,2]
[362079698,1747979453685,-1500.0,0.00021288,2]
[362079699,1747979453695,-3000.0,0.0002129,2]
[362079700,1747979453704,-500.0,0.00021297,2]
[362079701,1747979453714,-500.0,0.00021297,2]
[362079702,1747979453724,-500.0,0.00021297,2]
[362079703,1747979453734,-156.0,0.000213,2]
[362079704,1747979453744,-3000.0,0.000213,2]
[362079705,1747979453754,-151.0,0.000213,3]
[362079706,1747979453764,-3000.0,0.0002131,2]
[362079707,1747979453774,-500.0,0.00021313,2]
[362079708,1747979453784,-5522.18001289,0.00021314,5]
[362079709,1747979453794,-600.0,0.00021319,2]
[362079710,1747979453804,-536.24396676,0.00021319,2]
[362079711,1747979453814,-3000.0,0.0002132,2]
[362079712,1747979453824,-151.0,0.0002132,2]
[362079713,1747979453834,-151.0,0.0002132,2]
[362079714,1747979453844,-158.95487,0.0002132,2]
[362079715,1747979453854,-158.95487,0.0002132,2]
[362079716,1747979453863,-2816.668241,0.0002132,2]
[362079717,1747979453873,-2816.668241,0.0002132,2]
[362079718,1747979453883,-151.0,0.0002132,2]
[362079719,1747979453892,-151.0,0.0002132,2]
[362079720,1747979453901,-238.878266,0.0002132,2]
[362079721,1747979453911,-238.878266,0.0002132,2]
[362079722,1747979453920,-151.0,0.0002132,2]
[362079723,1747979453930,-151.0,0.0002132,2]
[362079724,1747979453940,-3000.0,0.0002133,2]
[362079725,1747979453950,-157.281424,0.0002133,2]
[362079726,1747979453960,-151.0,0.0002133,2]
[362079727,1747979453970,-996.196674,0.0002133,2]
[362079728,1747979453980,-996.196674,0.0002133,2]
[362079729,1747979453989,-298.554493,0.0002133,2]
[362079730,1747979453998,-298.554493,0.0002133,2]
[362079731,1747979454007,-3000.0,0.0002134,2]
[362079732,1747979454022,-151.0,0.0002134,2]
[362079733,1747979454031,-3000.0,0.0002135,2]
[362079734,1747979454041,-3000.0,0.0002136,2]
[362079735,1747979454051,-151.0,0.0002136,2]
[362079736,1747979454060,-151.0,0.0002136,2]
[362079737,1747979454070,-151.0,0.0002136,2]
[362079738,1747979454080,-169.148613,0.00021369,2]
[362079739,1747979454089,-169.148613,0.00021369,2]
[362079740,1747979454100,-151.0,0.00021369,2]
[362079741,1747979454110,-151.0,0.00021369,2]
[362079742,1747979454120,-179.766042,0.00021369,2]
[362079743,1747979454130,-430.0,0.00021369,2]
[362079744,1747979454140,-552.44,0.00021369,2]
[362079745,1747979454150,-472.92,0.00021369,2]
[362079746,1747979454159,-551.13,0.00021369,2]
[362079747,1747979454169,-430.0,0.00021369,2]
[362079748,1747979454178,-791.74,0.00021369,2]
[362079749,1747979454189,-345.99569421,0.00021369,2]
[362079750,1747979454199,-649.04,0.00021369,2]
[362079751,1747979454209,-489.99,0.00021369,2]
[362079752,1747979454219,-750.1,0.00021369,2]
[362079753,1747979454229,-677.22,0.00021369,2]
[362079754,1747979454239,-430.0,0.00021369,2]
[362079755,1747979454249,-1615.51,0.00021369,2]
[362079756,1747979454259,-1478.49,0.00021369,2]
[362079757,1747979454268,-535.65808864,0.00021369,2]
[362079758,1747979454277,-677.89,0.00021369,2]
[362079759,1747979454287,-486.8,0.00021369,2]
[362079760,1747979454297,-1176.14,0.00021369,2]
[362079761,1747979454307,-537.48,0.00021369,2]
[362079762,1747979454316,-3000.0,0.0002137,2]
[362079763,1747979454326,-151.0,0.0002137,2]
[362079764,1747979454337,-197.952902,0.0002137,2]
[362079765,1747979454346,-197.952902,0.0002137,2]
[362079766,1747979454356,-3000.0,0.0002138,2]
[362079767,1747979454365,-151.0,0.0002138,2]
[362079768,1747979454376,-245.906081,0.0002138,2]
[362079769,1747979454385,-160.0,0.00021385,9]
[362079770,1747979454395,-162.72933101,0.00021385,5]
[362079771,1747979454405,-3000.0,0.0002139,2]
[362079772,1747979454415,-151.0,0.00021397,2]
[362079773,1747979454425,-152.713098,0.00021397,2]
[362079774,1747979454436,-516.689394,0.00021397,2]
[362079775,1747979454446,-516.689394,0.00021397,2]
[362079776,1747979454457,-257.7779726,0.00021397,2]
[362079777,1747979454467,-3000.0,0.000214,2]
[362079778,1747979454477,-546.33,0.000214,14]
[362079779,1747979454487,-3000.0,0.0002141,2]
[362079780,1747979454501,-3000.0,0.0002142,2]
[362079781,1747979454510,-151.0,0.0002142,2]
[362079782,1747979454519,-151.0,0.0002142,2]
[362079783,1747979454528,-151.0,0.0002142,2]
[362079784,1747979454538,-3000.0,0.0002143,2]
[362079785,1747979454548,-4014.066004,0.0002144,2]
[362079786,1747979454558,-151.0,0.0002144,2]
[362079787,1747979454570,-1000.0,0.00021441,2]
[362079788,1747979454580,-1000.0,0.00021441,2]
[362079789,1747979454590,-1000.0,0.00021441,2]
[362079790,1747979454600,-1000.0,0.00021441,2]
[362079791,1747979454609,-257.7779726,0.00021507,2]
[362079792,1747979454619,-5522.18001289,0.0002159,5]
[362079793,1747979454629,-257.7779726,0.00021616,2]
[362079794,1747979454638,-229.925772,0.00021643,2]
[362079795,1747979454648,-229.925772,0.00021643,2]
[362079796,1747979454658,-259.71232923,0.00021643,2]
[362079797,1747979454667,-552.44,0.00021643,2]
[362079798,1747979454677,-472.92,0.00021643,2]
[362079799,1747979454687,-551.13,0.00021643,2]
[362079800,1747979454697,-325.19297523,0.00021643,2]
[362079801,1747979454707,-791.74,0.00021643,2]
[362079802,1747979454716,-649.04,0.00021643,2]
[362079803,1747979454726,-489.99,0.00021643,2]
[362079804,1747979454736,-750.1,0.00021643,2]
[362079805,1747979454746,-677.22,0.00021643,2]
[362079806,1747979454755,-430.0,0.00021643,2]
[362079807,1747979454764,-1615.51,0.00021643,2]
[362079808,1747979454774,-1478.49,0.00021643,2]
[362079809,1747979454783,-677.89,0.00021643,2]
[362079810,1747979454792,-486.8,0.00021643,2]
[362079811,1747979454802,-1176.14,0.00021643,2]
[362079812,1747979454811,-537.48,0.00021643,2]
[362079813,1747979454821,-155.0,0.00021644,2]
[362079814,1747979454830,-2500.0,0.00021682,2]
[362079815,1747979454840,-257.7779726,0.00021699,2]
[362079816,1747979454849,-151.0,0.000217,4]
[362079817,1747979454859,-151.0,0.00021726,2]
[362079818,1747979454869,-153.246323,0.00021726,2]
[362079819,1747979454878,-152.177729,0.00021726,2]
[362079820,1747979454887,-151.0,0.00021726,2]
[362079821,1747979454895,-154.6727887,0.00021726,2]
[362079822,1747979454906,-570.1314833,0.00021726,2]
[362079823,1747979454915,-354.9059305,0.00021726,2]
[362079824,1747979454925,-158.2090311,0.00021726,2]
[362079825,1747979454934,-570.1314833,0.00021726,2]
[362079826,1747979454944,-158.2090311,0.00021726,2]
[362079827,1747979454953,-158.2090311,0.00021726,2]
[362079828,1747979454963,-570.1314833,0.00021726,2]
[362079829,1747979454972,-158.2090311,0.00021726,2]
[362079830,1747979454982,-158.2090311,0.00021726,2]
[362079831,1747979454992,-175.4077562,0.00021726,2]
[362079832,1747979455002,-151.0,0.00021752,2]
[362079833,1747979455012,-215.0738,0.00021752,2]
[362079834,1747979455026,-152.522554,0.00021765,2]
[362079835,1747979455035,-1166.73769295,0.0002178,2]
[362079836,1747979455046,-1536.736566,0.000218,5]
[362079837,1747979455056,-257.7779726,0.00021808,2]
[362079838,1747979455066,-1000.0,0.0002182,5]
[362079839,1747979455076,-1000.0,0.0002184,5]
[362079840,1747979455086,-500.96652709,0.00021845,2]
[362079841,1747979455097,-1000.0,0.00021845,2]
[362079842,1747979455107,-501.29091798,0.00021845,2]
[362079843,1747979455117,-1000.0,0.0002186,5]
[362079844,1747979455127,-1000.0,0.00021861,2]
[362079845,1747979455137,-5522.18001289,0.00021866,6]
[362079846,1747979455147,-1200.0,0.00021867,2]
[362079847,1747979455156,-1000.0,0.0002188,5]
[362079848,1747979455166,-546.33,0.000219,14]
[362079849,1747979455177,-1000.0,0.000219,5]
[362079850,1747979455188,-214.61,0.00021917,2]
[362079851,1747979455198,-552.44,0.00021917,2]
[362079852,1747979455208,-472.92,0.00021917,2]
[362079853,1747979455358,-500.0,0.00021917,2]
[362079854,1747979455370,-551.13,0.00021917,2]
[362079855,1747979455379,-791.74,0.00021917,2]
[362079856,1747979455389,-649.04,0.00021917,2]
[362079857,1747979455398,-489.99,0.00021917,2]
[362079858,1747979455408,-750.1,0.00021917,2]
[362079859,1747979455418,-677.22,0.00021917,2]
[362079860,1747979455428,-327.84,0.00021917,2]
[362079861,1747979455438,-1615.51,0.00021917,2]
[362079862,1747979455448,-1478.49,0.00021917,2]
[362079863,1747979455458,-151.0,0.00021917,2]
[362079864,1747979455468,-677.89,0.00021917,2]
[362079865,1747979455478,-486.8,0.00021917,2]
[362079866,1747979455488,-500.0,0.00021917,2]
[362079867,1747979455498,-1176.14,0.00021917,2]
[362079868,1747979455508,-537.48,0.00021917,2]
[362079869,1747979455518,-151.0,0.00021918,2]
[362079870,1747979455527,-151.0,0.00021918,2]
[362079871,1747979455537,-151.0,0.00021918,2]
[362079872,1747979455547,-151.0,0.00021918,2]
[362079873,1747979455556,-151.0,0.00021918,2]
[362079874,1747979455566,-257.7779726,0.00021918,2]
[362079875,1747979455576,-210.547271,0.00021918,7]
[362079876,1747979455585,-154.088098,0.00021918,7]
[362079877,1747979455595,-154.088098,0.00021918,7]
[362079878,1747979455613,-151.0,0.00021918,7]
[362079879,1747979455623,-151.0,0.00021918,7]
[362079880,1747979455634,-151.0,0.00021918,7]
[362079881,1747979455643,-587.96488022,0.00021918,2]
[362079882,1747979455659,-587.96488022,0.00021918,2]
[362079883,1747979455669,-587.96488022,0.00021918,2]
[362079884,1747979455679,-587.96488022,0.00021918,2]
[362079885,1747979455688,-587.96488022,0.00021918,2]
[362079886,1747979455698,-587.96488022,0.00021918,2]
[362079887,1747979455708,-587.96488022,0.00021918,2]
[362079888,1747979455718,-587.96488022,0.00021918,2]
[362079889,1747979455727,-587.96488022,0.00021918,2]
[362079890,1747979455736,-587.96488022,0.00021918,2]
[362079891,1747979455746,-587.96488022,0.00021918,2]
[362079892,1747979455755,-587.96488022,0.00021918,2]
[362079893,1747979455764,-587.96488022,0.00021918,2]
[362079894,1747979455774,-1500.0,0.00021989,2]
[362079895,1747979455784,-1502.619529,0.00021989,2]
[362079896,1747979455794,-794.48780519,0.00021989,2]
[362079897,1747979455804,-1500.0,0.00021989,2]
[362079898,1747979455813,-369.3789102,0.00022,2]
[362079899,1747979455823,-5000.0,0.00022,2]
[362079900,1747979455833,-100035.9927118,0.00022,2]
[362079901,1747979455844,-251.14129537,0.00022,2]
[362079902,1747979455854,-2274.53,0.00022,2]
[362079903,1747979455863,-151.0,0.00022,7]
[362079904,1747979455873,-151.0,0.00022,7]
[362079905,1747979455883,-151.0,0.00022,7]
[362079906,1747979455892,-151.0,0.00022,7]
[362079907,1747979455902,-169.148613,0.00022,7]
[362079908,1747979455911,-169.148613,0.00022,7]
[362079909,1747979455920,-229.925772,0.00022,7]
[362079910,1747979455929,-229.925772,0.00022,7]
[362079911,1747979455939,-245.906081,0.00022,7]
[362079912,1747979455948,-151.380611,0.00022,7]
[362079913,1747979455958,-197.952902,0.00022,7]
[362079914,1747979455968,-151.0,0.00022,7]
[362079915,1747979455978,-197.952902,0.00022,7]
[362079916,1747979455987,-151.0,0.00022,7]
[362079917,1747979455997,-182.356504,0.00022,7]
[362079918,1747979456006,-158.95487,0.00022,2]
[362079919,1747979456017,-158.95487,0.00022,2]
[362079920,1747979456028,-248.974893,0.00022,7]
[362079921,1747979456038,-2816.668241,0.00022,7]
[362079922,1747979456047,-2816.668241,0.00022,7]
[362079923,1747979456056,-151.0,0.00022,7]
[362079924,1747979456066,-151.0,0.00022,7]
[362079925,1747979456075,-516.689394,0.00022,7]
[362079926,1747979456085,-516.689394,0.00022,7]
[362079927,1747979456096,-151.0,0.00022,7]
[362079928,1747979456105,-151.0,0.00022,7]
[362079929,1747979456115,-238.878266,0.00022,7]
[362079930,1747979456124,-238.878266,0.00022,7]
[362079931,1747979456134,-151.0,0.00022,7]
[362079932,1747979456143,-151.0,0.00022,7]
[362079933,1747979456152,-151.0,0.00022,7]
[362079934,1747979456162,-151.0,0.00022,7]
[362079935,1747979456171,-151.0,0.00022,7]
[362079936,1747979456181,-151.0,0.00022,7]
[362079937,1747979456191,-151.0,0.00022,7]
[362079938,1747979456201,-996.196674,0.00022,2]
[362079939,1747979456210,-996.196674,0.00022,2]
[362079940,1747979456220,-151.0,0.00022,7]
[362079941,1747979456229,-298.554493,0.00022,7]
[362079942,1747979456239,-298.554493,0.00022,7]
[362079943,1747979456248,-500.0,0.00022,3]
[362079944,1747979456258,-894.64583333,0.00022,7]
[362079945,1747979456268,-212.48480548,0.00022,7]
[362079946,1747979456277,-191.0,0.00022,2]
[362079947,1747979456287,-3000.0,0.00022022,2]
[362079948,1747979456297,-257.7779726,0.00022027,2]
[362079949,1747979456307,-500.0,0.00022064,2]
[362079950,1747979456318,-152.205295,0.0002209,3]
[362079951,1747979456327,-257.7779726,0.00022137,2]
[362079952,1747979456339,-5522.18001289,0.00022141,6]
[362079953,1747979456348,-10763.45901658,0.00022181,2]
[362079954,1747979456358,-172.688586,0.00022181,7]
[362079955,1747979456366,-154.088098,0.00022191,7]
[362079956,1747979456375,-154.088098,0.00022191,7]
[362079957,1747979456385,-151.0,0.00022191,7]
[362079958,1747979456395,-170.960652,0.00022191,7]
[362079959,1747979456404,-552.44,0.00022191,2]
[362079960,1747979456414,-472.92,0.00022191,2]
[362079961,1747979456424,-551.13,0.00022191,2]
[362079962,1747979456434,-791.74,0.00022191,2]
[362079963,1747979456444,-649.04,0.00022191,2]
[362079964,1747979456453,-489.99,0.00022191,2]
[362079965,1747979456463,-750.1,0.00022191,2]
[362079966,1747979456473,-677.22,0.00022191,2]
[362079967,1747979456483,-1615.51,0.00022191,2]
[362079968,1747979456493,-1478.49,0.00022191,2]
[362079969,1747979456503,-677.89,0.00022191,2]
[362079970,1747979456512,-486.8,0.00022191,2]
[362079971,1747979456522,-1176.14,0.00022191,2]
[362079972,1747979456532,-537.48,0.00022191,2]
[362079973,1747979456541,-191.0,0.00022192,7]
[362079974,1747979456551,-155.0,0.00022192,2]
[362079975,1747979456561,-2426.98,0.000222,2]
[362079976,1747979456571,-257.7779726,0.00022219,2]
[362079977,1747979456580,-1600.0,0.0002226,2]
[362079978,1747979456590,-500.0,0.0002227,2]
[362079979,1747979456599,-500.0,0.0002227,2]
[362079980,1747979456609,-500.0,0.0002227,2]
[362079981,1747979456619,-151.0,0.000223,9]
[362079982,1747979456628,-257.7779726,0.00022329,2]
[362079983,1747979456638,-3000.0,0.00022356,2]
[362079984,1747979456647,-1500.0,0.00022393,2]
[362079985,1747979456657,-501.34095919,0.00022409,2]
[362079986,1747979456667,-1800.0,0.00022415,2]
[362079987,1747979456678,-5522.18001289,0.00022417,7]
[362079988,1747979456687,-257.7779726,0.00022438,2]
[362079989,1747979456697,-178.87489615,0.00022454,2]
[362079990,1747979456707,-552.44,0.00022465,2]
[362079991,1747979456716,-472.92,0.00022465,2]
[362079992,1747979456726,-551.13,0.00022465,2]
[362079993,1747979456736,-791.74,0.00022465,2]
[362079994,1747979456745,-649.04,0.00022465,2]
[362079995,1747979456755,-489.99,0.00022465,2]
[362079996,1747979456764,-750.1,0.00022465,2]
[362079997,1747979456773,-677.22,0.00022465,2]
[362079998,1747979456783,-1615.51,0.00022465,2]
[362079999,1747979456792,-1478.49,0.00022465,2]
[362080000,1747979456802,-677.89,0.00022465,2]
[362080001,1747979456811,-486.8,0.00022465,2]
[362080002,1747979456821,-202.19513029,0.00022465,2]
[362080003,1747979456831,-1176.14,0.00022465,2]
[362080004,1747979456840,-537.48,0.00022465,2]
[362080005,1747979456850,-546.33,0.000225,14]
[362080006,1747979456859,-176.782383,0.000225,2]
[362080007,1747979456869,-1511.81374291,0.00022537,2]
[362080008,1747979456879,-2000.0,0.00022537,2]
[362080009,1747979456888,-257.7779726,0.00022548,2]
[362080010,1747979456898,-157.98,0.00022548,2]
[362080011,1747979456907,-454.0030363,0.00022548,2]
[362080012,1747979456916,-153.0,0.00022548,2]
[362080013,1747979456926,-153.0,0.00022548,2]
[362080014,1747979456935,-153.0,0.00022548,2]
[362080015,1747979456945,-153.0,0.00022548,2]
[362080016,1747979456954,-153.0,0.00022548,2]
[362080017,1747979456963,-287.106493,0.00022603,2]
[362080018,1747979456974,-881.36099912,0.0002262,2]
[362080019,1747979456984,-4000.0,0.00022644,4]
[362080020,1747979456993,-5522.18001289,0.00022693,7]
[362080021,1747979457003,-151.0,0.000227,8]
[362080022,1747979457012,-552.61367784,0.00022739,2]
[362080023,1747979457025,-473.04,0.00022739,2]
[362080024,1747979457035,-551.24148682,0.00022739,2]
[362080025,1747979457044,-791.91668669,0.00022739,2]
[362080026,1747979457054,-649.13308059,0.00022739,2]
[362080027,1747979457063,-490.14746904,0.00022739,2]
[362080028,1747979457074,-750.23200496,0.00022739,2]
[362080029,1747979457083,-677.26350639,0.00022739,2]
[362080030,1747979457093,-1615.64136212,0.00022739,2]
[362080031,1747979457103,-1478.70942526,0.00022739,2]